Cogmind - Beta 13 @@@ ROGUE MODE // 2024.03.16 @ 22:47:17 Player: Moya Result: Destroyed by G-47 Trooper with Particle Gun Performance ------------- Evolutions (1) 500 Regions Visited (2) 400 Robots Destroyed (40) 200 Value Destroyed (727) 727 Prototype IDs (0) 0 Alien Tech Used (0) 0 Bonus (10) 10 TOTAL SCORE: 1837 Bonus ------- High Alert Combat Kills 10 Cogmind --------- Core Integrity 0/400 Matter 197/300 Energy 66/100 System Corruption 0% Temperature Cool (9) Movement Core (200) Ox3 Location -9/Materials Parts ------- > --- POWER (2) -------- (None) > --- PROPULSION (2) --- (None) > --- UTILITY (3) ------ Medium Storage Unit ECM Suite > --- WEAPON (2) ------- (None) > --- INVENTORY (10) --- Compact Wheel Disposable Heat Sink Small Battery (100) Peak State ------------ > --- POWER ------------ Light Ion Engine Light Ion Engine > --- PROPULSION ------- Wheel Wheel > --- UTILITY ---------- Medium Storage Unit ECM Suite Medium Armor Plating > --- WEAPON ----------- EM Pulse Gun Heavy Assault Rifle > --- INVENTORY -------- Aluminum Leg Aluminum Leg Compact Wheel Disposable Heat Sink Small Battery Light Armor Plating Small Laser Small Laser EMP Blaster Mining Laser [Rating: 12] Favorites ----------- Power Ion Engine Engine Ion Engine Propulsion Compact Wheel Wheel Compact Wheel Utility Medium Storage Unit Device ECM Suite Storage Medium Storage Unit Protection Light Armor Plating Weapon EM Pulse Gun Energy Gun EM Pulse Gun Ballistic Gun Heavy Assault Rifle Launcher EMP Blaster Build | -11 -10 -9 ------- Run | Yrd Mat Mat Slots Evolved 2 | . . 2 Power 1 | . . 1 Propulsion . | . . . Utility 1 | . . 1 Weapon . | . . . Parts Attached 34 | 6 6 22 Power 4 | 1 1 2 Engine 4 | 1 1 2 Core . | . . . Reactor . | . . . Propulsion 7 | 2 1 4 Treads . | . . . Leg . | . . . Wheel 7 | 2 1 4 Hover . | . . . Flight . | . . . Utility 9 | 1 2 6 Device 2 | . . 2 Storage 4 | 1 1 2 Processor . | . . . Hackware . | . . . Protection 3 | . 1 2 Artifact . | . . . Weapon 14 | 2 2 10 Energy Gun 5 | 2 2 1 Energy Cannon . | . . . Ballistic Gun 5 | . . 5 Ballistic Cannon . | . . . Launcher 4 | . . 4 Special Weapon . | . . . Impact Weapon . | . . . Slashing Weapon . | . . . Piercing Weapon . | . . . Special Melee Weapon . | . . . Unidentified Prototypes . | . . . Parts Lost 15 | . 1 14 Power 4 | . 1 3 Propulsion 5 | . . 5 Utility 2 | . . 2 Weapon 4 | . . 4 Highest Loss Streak 7 | . 1 7 To Critical Strikes . | . . . Average Slot Usage (%) 85 | . 93 80 Engine 11 | . 14 10 Wheel 22 | . 28 18 Device 5 | . . 10 Storage 12 | . 14 11 Protection 8 | . 7 9 Energy Gun 18 | . 28 11 Ballistic Gun 4 | . . 7 Naked Turns . | . . . Heaviest Build 30 | 14 21 30 Greatest Support 32 | 26 32 32 Greatest Overweight (x) 7 | . . 7 Average Overweight (x) . | . . . Largest Inventory Capacity 10 | 8 10 10 Average Capacity 9 | 6 8 10 Most Carried 10 | 4 7 10 Average Carried 6 | 2 4 8 Final Capacity 10 | 8 10 10 Final Carried 7 | 4 7 3 Class Distribution -------------------- 94% | Mutant 5% | Scavenger-Mutant Dominant Class ---------------- Mutant | -10/Materials Mutant | -9/Materials Resources | -11 -10 -9 ----------- Run | Yrd Mat Mat Matter Collected 609 | 153 147 309 Remotely . | . . . Salvage Created 1287 | . 259 1028 Parts 89 | . 18 71 Haulers Intercepted 2 | . . 2 Recyclers Shooed 4 | . . 4 Parts Field Recycled . | . . . Retrieved Matter . | . . . Parts Self-Destructed . | . . . Prevented . | . . . Kills | -11 -10 -9 ------- Run | Yrd Mat Mat Combat Hostiles Destroyed 23 | . 3 20 Guns 16 | . 2 14 AOE 7 | . 1 6 Classes Destroyed 11 | . 5 6 Worker 5 | . . 5 Builder 2 | . 1 1 Hauler 2 | . . 2 Recycler 2 | . 1 1 Mechanic 1 | . 1 . Operator 1 | . . 1 Watcher 4 | . 3 1 Swarmer 9 | . 3 6 Grunt 11 | . . 11 Brawler 1 | . . 1 Sentry 2 | . . 2 Best Kill Streak 9 | . 5 9 Combat Bots Only 7 | . 3 7 Max Kills in Single Turn 3 | . 2 3 Gunslinging 1 | . . 1 Exploded 3 | . 1 3 Melee . | . . . Uniques/NPCs Destroyed . | . . . Combat | -11 -10 -9 -------- Run | Yrd Mat Mat Hostile Shots Fired 228 | . 18 210 Missed 83 | . 5 78 Damage Taken 1646 | . 163 1483 Core 421 | . 19 402 Absorbed by Shields . | . . . Core Remaining (%) 96 | 100 92 . Volleys Fired 81 | . 17 64 Largest 2 | . 2 2 Hottest 80 | . 80 80 Shots Fired 158 | . 34 124 Gun 148 | . 34 114 Cannon . | . . . Launcher 10 | . . 10 Special . | . . . Kinetic 63 | . . 63 Thermal 13 | . . 13 Explosive . | . . . Electromagnetic 82 | . 34 48 Robot Hit Streak 8 | . 8 8 Robot Miss Streak 5 | . 3 5 Penetration Max . | . . . Secondary Targets 4 | . . 4 Max Gunslinging Chain 1 | . . 1 Shots Hit Robots 87 | . 19 68 Core Hits 56 | . 13 43 Critical Kills . | . . . Critical Parts Destroyed . | . . . Critical Strikes . | . . . Melee Attacks . | . . . Impact . | . . . Slashing . | . . . Piercing . | . . . Sneak Attacks . | . . . Combat Hostiles . | . . . Follow-up Attacks . | . . . Damage Inflicted 2388 | . 419 1969 Guns 1310 | . 300 1010 Cannons . | . . . Explosions 1050 | . 118 932 Melee . | . . . Ramming 28 | . 1 27 Kinetic 588 | . . 588 Thermal 649 | . 118 531 Explosive . | . . . Electromagnetic 1123 | . 300 823 Impact . | . . . Slashing . | . . . Piercing . | . . . Highest Corruption . | . . . Average Corruption . | . . . Corruption Purged . | . . . Corruption Blocked . | . . . Overload Shots . | . . . Overflow Damage 25 | . 11 14 Projectiles . | . . . Explosions 25 | . 11 14 Melee . | . . . Knockbacks . | . . . Impact . | . . . Kinetic . | . . . Secondary . | . . . Self-Inflicted Damage 25 | . . 25 Shots 2 | . . 2 Rammed 3 | . 1 2 Targets Rammed 3 | . 1 2 Kicked . | . . . Crushed . | . . . Highest Temperature 252 | . 108 252 Average Temperature 61 | . 35 71 Received Heat Transfer 600 | . . 600 Siege Activations . | . . . Robots Corrupted . | . . . Combat Hostiles . | . . . Parts Fried 5 | . 4 1 Impact Corruptions . | . . . Robots Melted . | . . . Combat Hostiles . | . . . Parts Melted . | . . . Heat Transferred 1075 | . 200 875 Parts Sabotaged . | . . . Parts Stolen . | . . . Parts Stripped . | . . . Power Chain Reactions 10 | . 3 7 Alert | -11 -10 -9 ------- Run | Yrd Mat Mat Peak Influence 420 | . 161 420 Initial 63 | . . 63 Average 181 | . 133 237 Maximum Alert Level 2 | . . 2 Low Security (%) 62 | 100 100 32 Level 1 31 | . . 57 Level 2 5 | . . 10 Level 3 . | . . . Level 4 . | . . . Level 5 . | . . . High Security . | . . . Max Security . | . . . Squads Dispatched 3 | . . 3 Investigation 1 | . . 1 Extermination . | . . . Reinforcement 2 | . . 2 Assault . | . . . Garrison . | . . . Intercept . | . . . Searches Triggered . | . . . Construction Impeded 1 | . . 1 Haulers Reinforced . | . . . Active Scanning Responses . | . . . Cargo Convoy Interrupts . | . . . Stealth | -11 -10 -9 --------- Run | Yrd Mat Mat Distress Signals 6 | . 1 5 Communications Jammed . | . . . Distress Signals . | . . . Times Spotted 44 | . 9 35 Peak Tracking Total 7 | . 4 7 Tactical Retreats 2 | . 1 1 Traps | -11 -10 -9 ------- Run | Yrd Mat Mat Traps Triggered 2 | . 2 . Indirectly . | . . . Trap Hack Attempts . | . . . Triggered . | . . . Disarmed . | . . . Reprogrammed . | . . . Reused . | . . . Traps Extracted . | . . . Installed . | . . . Triggered . | . . . Machines | -11 -10 -9 ---------- Run | Yrd Mat Mat Machines Disabled . | . . . Max in Single Turn . | . . . Machines Repaired . | . . . Machines Dismantled . | . . . Machines Sabotaged . | . . . Overloaded Fab Kills . | . . . Hacking | -11 -10 -9 --------- Run | Yrd Mat Mat Machines Accessed 3 | . 1 2 Terminals 2 | . 1 1 Fabricators . | . . . Repair Stations 1 | . . 1 Recycling Units . | . . . Scanalyzers . | . . . Garrison Access . | . . . Total Hacks 7 | . 2 5 Successful 5 | . 1 4 Failed 2 | . 1 1 Catastrophic . | . . . Database Lockouts . | . . . Manual . | . . . Terminals 4 | . 2 2 Fabricators . | . . . Repair Stations 3 | . . 3 Recycling Units . | . . . Scanalyzers . | . . . Garrison Access . | . . . Terminal Hacks 3 | . 1 2 Record 3 | . 1 2 Fabricator Hacks . | . . . Repair Station Hacks 2 | . . 2 Scan Component 1 | . . 1 Repair 1 | . . 1 Recycling Unit Hacks . | . . . Scanalyzer . | . . . Garrison Access Hacks . | . . . Unauthorized Hacks . | . . . Terminals . | . . . Fabricators . | . . . Repair Stations . | . . . Recycling Units . | . . . Scanalyzers . | . . . Garrison Access . | . . . Data Cores Recovered . | . . . Used . | . . . Hacking Detections 2 | . 1 1 Full Trace Events 1 | . . 1 Feedback Events . | . . . Feedback Blocked . | . . . Robot Schematics Acquired . | . . . Robots Built . | . . . Authchips . | . . . Time . | . . . Total Robot Build Rating . | . . . Part Schematics Acquired . | . . . Parts Built . | . . . Authchips . | . . . Time . | . . . Total Part Build Rating . | . . . Parts Repaired 1 | . . 1 Time 36 | . . 36 Parts Recycled . | . . . Recycled Matter . | . . . Retrieved Matter . | . . . Retrieved Components . | . . . Parts Scanalyzed . | . . . Part Schematics Acquired . | . . . Parts Damaged . | . . . Bothacking | -11 -10 -9 ------------ Run | Yrd Mat Mat Used RIF Installer . | . . . Robots Hacked . | . . . Non-combat . | . . . Combat . | . . . Robot Hacks Applied . | . . . Relay Couplers Released . | . . . Fabnet Peak Effective % . | . . . Robots Rewired . | . . . Allies Hacked . | . . . Hacks Repelled . | . . . Allies | -11 -10 -9 -------- Run | Yrd Mat Mat Total Allies . | . . . Largest Group . | . . . Highest-Rated Group . | . . . Highest-Rated Ally . | . . . Total Orders . | . . . Ally Attacks . | . . . Total Damage . | . . . Kills . | . . . Allies Corrupted . | . . . Allies Melted . | . . . Intel | -11 -10 -9 ------- Run | Yrd Mat Mat Robot Analysis Total . | . . . Derelict Logs Recovered . | . . . Drone Launches . | . . . Drone Recoveries . | . . . Exploration | -11 -10 -9 ------------- Run | Yrd Mat Mat Turns Passed 1000 | 67 383 550 Spaces Moved 641 | 63 327 251 Core 7 | 4 . 3 Treads . | . . . Legs . | . . . Wheels 634 | 59 327 248 Hover . | . . . Flight . | . . . Fastest Speed 50 | 50 90 90 Average Speed 98 | 86 97 102 Slowest Speed 400 | 90 100 400 Overloaded Moves . | . . . Propulsion Burnouts . | . . . Robots Hopped . | . . . Cave-ins Triggered . | . . . Exploration Rate (%) 18 | 4 28 22 Regions Visited 2 Branch Regions . Pre-discovered Areas . | . . . Known Exits Taken . | . . . Unknown Exits Taken 2 | 1 1 . Scrap Searched . | . . . Spaces Dug . | . . . Terrain Destroyed 24 | . 10 14 Melee . | . . . Projectile . | . . . AOE 24 | . 10 14 Terrain Rammed . | . . . Walls Destroyed . | . . . Machines Disabled . | . . . Actions | -11 -10 -9 --------- Run | Yrd Mat Mat Total 846 | 72 355 419 Wait 66 | . . 66 Move 639 | 62 326 251 Hop . | . . . Pick Up 11 | 4 2 5 Fast Attach 14 | 6 2 6 Attach 6 | . 2 4 Detach 3 | . 2 1 Swap 14 | . 2 12 Drop 9 | . 1 8 Fire 81 | . 17 64 Melee . | . . . Ram 3 | . 1 2 Kick . | . . . Crush . | . . . Escape Stasis . | . . . Rewire . | . . . Trap . | . . . Miscellaneous . | . . . Route ------- -11/Scrapyard -10/Materials -9/Materials (discovered 1 exit: [*Min]) History --------- Turn | Location | Event 9 | -11/Scrapyard | Discovered new exit (range 15) 68 | -11/Scrapyard | Entered Materials 303 | -10/Materials | Build established: Mutant 363 | -10/Materials | Discovered new exit (range 16) 451 | -10/Materials | Entered another Materials area 451 | -9/Materials | Evolved 2 slots: Power x1, Utility x1 585 | -9/Materials | Repaired Broken Com. Wheel 825 | -9/Materials | Lost 3 parts (1p2n) 825 | -9/Materials | Discovered new exit (range 12) 827 | -9/Materials | Destroyed 7 combat bots 931 | -9/Materials | Lost 4 parts (1p1n1u1w) 962 | -9/Materials | Core integrity fell below 50% 984 | -9/Materials | Core integrity fell below 20% 1001 | -9/Materials | Destroyed by G-47 Trooper with Particle Gun Last Messages --------------- 00981_ G-47 Trooper IFF system glitched. 00982_ R-06 Scavenger collects Particle Gun. 00983_ U-05 Engineer lays Concrete. 00985_ G-47 Trooper misfires. 00985_ U-05 Engineer lays Concrete. 00986_ R-06 Scavenger collects Lgt. Treads. 00987_ U-05 Engineer lays Concrete. 00989_ K-01 Serf collects debris. 00989_ Destroyed Wheel. 00989_ Chain reaction triggered in Lgt. Ion Engine. 00989_ S-10 Pest destroyed. 00989_ Destroyed Welding Torch. 00989_ U-05 Engineer destroyed. 00990_ ALERT: Construction progress impeded, dispatching reinforcements to local area. 00991_ G-47 Trooper IFF system glitched. 00993_ EMP Blaster destroyed. 00995_ G-47 Trooper IFF system glitched. 00995_ K-01 Serf destroyed. 00999_ U-05 Engineer lays Concrete. Map ----- +----------------------------------------------------+ | ?????? %[%[ + | | ?????? =#####/################## | | ?????? * #?# #####???######### | | ????????############# #?# #???? | | ??????????# # #?# #???? | | ??????????# # #?# #???? | | ??????????# + #?# "T" #?????######## | | ??????????# # #?# """ #????????????# | | ??????????# # #?########????????????# ? | | ??????????# """ """ # ############ ????????# ?? | | ????????????""" """ # ???????#??? | | ????????????""" """ # ??????????? | | ?????????????########k r ??????????? | | ??################### u #######???????????? | | """ #?????????????????? | | [ "T" % #?????????????????? | | = #?????????????????? | | ???#######+##### % """ #?????????????????? | | ???????????????# % """ #?????????????????? | | ???????????????# = "" #??????#??????????? | | ???????????????# #????? #??????????? | | ???????????????# [ ][#??? ???????????? | | ???????????????# [ [ *]u#?? ?????????????? | | ???????????????# !!!!= * u##+########???????? | | ???????????????# %!!=[| % =%= ?????? | | ???????????????# *!!=@[!=*! % ?????? | | ???????????????# =%|%==[! a ?????? | | ???????????????# = =%%[=%;#####+##????????? | | ???????????????############g![#*##???????????????? | | ?????????????????????????##% =##?????????????????? | | ??????????????????????????# ! ##?????????????????? | | ??????????????????????????# #??????????????????? | | ??????????????????????????# #??????????????????? | | ?????????????????????????? ??????????????????? | | ?????????????????????????? "?????????????????? | | ?????????????????????????? !!????????????????? | | ?????????????????????????? < ""????????????????? | | ?????????????????????????? !!????????????????? | | ?????????????????????????# ""????????????????? | | ?????????????????????????# "????????????????? | | ??????????????????????????# ##?????????????????? | | ??????????????????????????? #??????????????????? | | ??????????????????????????? ???????????????????? | | ?????????????????????????????????????????????????? | | ?????????????????????????????????????????????????? | | ?????????????????????????????????????????????????? | | ?????????????????????????????????????????????????? | | ?????????????????????????????????????????????????? | | ?????????????????????????????????????????????????? | | ?????????????????????????????????????????????????? | +----------------------------------------------------+ Best States ------------- Heat Dissipation 28 Energy Generation 15 Energy Capacity 250 Matter Stores 300 Matter Capacity 300 Sight Range 16 Terrain Scan Density 10 ECM Strength 1 Armor Coverage 225 Evasion (%) 44 Item Schematics ----------------- None Robot Schematics ------------------ None Fabricated ------------ Nothing Alien Tech Used ----------------- None Achievements -------------- None Challenges ------------ None Game ------ Seed SensorConstructLegs Manual? 0 Play Time 00:13:17 Cumulative 9.3 hours Start 2024.03.16 @ 22:32:00 End 2024.03.16 @ 22:47:17 Sessions 1 Manual Loads 0 Difficulty Rogue Special Mode None Game No. 8 Rogue 1 Adventurer 7 Explorer 0 Win Type - Total 0 Types 0/0/0/0/0/0/0/0/0 Lore% 2 Gallery% 18 Achievement% 14 Wizard Run 0 Options --------- Layout 0 ASCII 0 Keyboard 1 Movement Vi Keybinds 0 Fullscreen 2 Font 16/TamsynBold Map View 32x25 Zoom Use 100% Tactical HUD 1 Map Filters NONE Filters NONE Steam 1 RUN: d4d906a8-afca-4206-9f09-50b495217194